{"text_format":"1","workbook":"xlsx","n_sheets":3,"sheets":["提出用","入力例・注意事項","事務局集計用"],"not_rendered":{"charts":0,"images":2,"macros":1,"external_links":0,"defined_names":4,"comments":0,"pivot_tables":0},"unopened":[],"bounds":{"document_bytes":16777216,"sheet_cells":100000,"rows_first":2000,"rows_last":500,"rows_between":2000,"halvings":0,"cell_chars":16384,"cell_head_chars":4096},"cells_cut":0,"cells_raw":0,"read":"whole","date_system":"1900"}

{"sheet":"提出用","index":0,"n_rows":107,"n_cols":37,"rows_kept":107,"cut":false,"hidden":false,"merged":[[1,0,1,3],[13,0,13,2],[11,3,11,20],[13,3,13,20],[11,0,11,2],[10,0,10,2],[3,0,3,20],[4,0,4,20],[9,0,9,20],[10,3,10,20],[7,0,7,20],[6,0,6,20],[5,0,5,20],[8,17,8,20],[8,3,8,4],[8,5,8,8],[8,9,8,10],[8,11,8,14],[43,1,43,2],[44,1,44,2],[40,18,40,20],[41,18,41,20],[31,13,31,17],[31,18,31,20],[39,18,39,20],[37,13,37,17],[38,14,38,16],[39,14,39,16],[35,0,35,20],[36,0,36,20],[44,14,44,16],[50,0,50,20],[42,1,42,2],[52,0,52,6],[39,1,39,2],[40,1,40,2],[41,1,41,2],[53,14,53,20],[31,5,31,7],[32,5,32,7],[43,18,43,20],[44,18,44,20],[32,13,32,17],[32,18,32,20],[33,0,33,20],[37,18,37,20],[31,0,31,4],[31,8,31,12],[41,4,41,12],[47,14,47,16],[48,14,48,16],[49,14,49,16],[38,18,38,20],[43,14,43,16],[51,0,51,20],[28,6,28,7],[28,10,28,12],[18,0,18,2],[18,3,18,15],[19,3,19,7],[55,0,55,20],[58,0,58,20],[28,15,28,18],[45,4,45,12],[46,4,46,12],[54,0,54,20],[45,1,45,2],[46,1,46,2],[38,4,38,12],[39,4,39,12],[38,1,38,2],[52,8,52,13],[52,15,52,20],[37,4,37,12],[40,4,40,12],[42,4,42,12],[37,1,37,2],[30,0,30,20],[34,0,34,20],[46,14,46,16],[45,14,45,16],[47,4,47,12],[40,14,40,16],[41,14,41,16],[42,14,42,16],[57,0,57,20],[26,0,26,20],[17,0,17,2],[17,7,17,20],[17,4,17,6],[19,11,19,15],[32,0,32,4],[19,0,19,2],[20,4,20,11],[21,4,21,11],[22,4,22,11],[23,4,23,11],[24,4,24,11],[20,13,20,20],[21,13,21,20],[22,13,22,20],[23,13,23,20],[24,13,24,20],[11,22,11,24],[13,25,13,42],[14,25,14,42],[13,22,13,24],[14,22,14,24],[15,22,16,42],[56,1,56,20],[20,0,24,2],[42,18,42,20],[18,16,18,20],[19,16,19,20],[48,4,48,12],[49,4,49,12],[47,1,47,2],[48,1,48,2],[49,1,49,2],[44,4,44,12],[43,4,43,12],[45,18,45,20],[46,18,46,20],[47,18,47,20],[48,18,48,20],[49,18,49,20],[53,0,53,13],[19,8,19,10],[8,15,8,16],[8,0,8,2],[16,0,16,2],[15,0,15,2],[12,0,12,20],[16,3,16,10],[15,3,15,10],[15,16,15,20],[15,11,15,15],[16,16,16,20],[16,11,16,15],[14,3,14,20],[14,0,14,2],[54,22,54,42],[43,32,43,33],[44,32,44,33],[43,34,43,35],[46,22,46,23],[45,24,45,25],[46,24,46,25],[4,22,8,42],[12,22,12,42],[37,22,37,42],[43,36,44,42],[43,28,43,29],[44,28,44,29],[43,26,43,27],[44,26,44,27],[43,22,43,23],[43,24,43,25],[44,24,44,25],[44,30,44,31],[43,30,43,31],[45,22,45,23],[10,25,10,42],[11,25,11,42],[10,22,10,24]]}
[]
["提出用 "]
[]
["建設技術公開「ＥＥ東北’19」出展申込書"]
["「ＥＥ東北'19」出展募集要項に同意の上、以下のとおり出展を申込みます",null,null,null,null,null,null,null,null,null,null,null,null,null,null,null,null,null,null,null,null,null,"出展形式がグループ出展・共同出展の場合は、\n出展するすべての企業(団体)名を『　/　(半角スラッシュ)』で区切って記入(入力)してください。\nさらに、グループ出展の場合は頭にグループ名を入れてください。\n※こちらに記入(入力)した企業・団体名が出展者名プレートやガイドブックに表記する名称となります。"]
["１．出展者・申込者の申請"]
[]
["◆出展形式を選択してください　(該当欄を○で囲むかボタンをクリック)"]
["出展形式",null,null,null,null,"➊単独出展\n1企業(団体)での出展",null,null,null,null,null,"➋グループ出展\nグループ企業での出展",null,null,null,null,null,"➌共同出展\n複数企業(団体)での出展"]
["①出展者名を正式な企業・団体名で記入(入力)してください"]
["ﾌﾘｶﾞﾅ(半角)",null,null,null,null,null,null,null,null,null,null,null,null,null,null,null,null,null,null,null,null,null,"ﾌﾘｶﾞﾅ(半角)",null,null,"ｼｰｴｽﾃｨｰﾕｰﾎｰﾙﾃﾞｨﾝｸﾞｽ　ﾄｳﾎｸﾃｸﾉﾛｼﾞｰ/ｺﾝｽﾄﾗｸｼｮﾝ/ﾄｳﾎｸﾃｸﾉﾕｰｽ/ﾎﾞｳｻｲﾁｮｳｻ"]
["出展者名",null,null,null,null,null,null,null,null,null,null,null,null,null,null,null,null,null,null,null,null,null,"出展者名",null,null,"CSTUホールディングス　(株)東北テクノロジー/(株)コンストラクション/東北テクノユース(株)/防災調査(株)"]
["➁申込者名を正式な企業・団体名で記入(入力)してください",null,null,null,null,null,null,null,null,null,null,null,null,null,null,null,null,null,null,null,null,null,"こちらに記入(入力)した企業・団体名の(担当者所在地)宛てに請求書を送付します。"]
["ﾌﾘｶﾞﾅ(半角)",null,null,null,null,null,null,null,null,null,null,null,null,null,null,null,null,null,null,null,null,null,"ﾌﾘｶﾞﾅ(半角)",null,null,"ﾄｳﾎｸﾃｸﾉﾛｼﾞｰ"]
["申込者名\n(企業・団体名)",null,null,null,null,null,null,null,null,null,null,null,null,null,null,null,null,null,null,null,null,null,"申込者名\n(企業・団体名)",null,null,"(株)東北テクノロジー"]
["ﾌﾘｶﾞﾅ(半角)",null,null,null,null,null,null,null,null,null,null,"所属部署",null,null,null,null,"役　職",null,null,null,null,null,"出展形式がグループ出展・共同出展の場合は、\n代表となる企業・団体名と申込に関する窓口となる担当者を記入(入力)してください。"]
["担当者氏名"]
["所在地",null,null,"〒"]
["E-mail",null,null,null,null,null,null,null,null,null,null,null,null,null,null,null,"出展申込者の本社・本部等の\n所在地（都道府県）"]
["ＴＥＬ",null,null,null,null,null,null,null,"ＦＡＸ"]
["所属する\n構成団体\n\n(該当欄を\n○で囲むか\nボタンをクリック)",null,null,null,"(一社)日本建設業連合会 東北支部",null,null,null,null,null,null,null,null,"(一社)日本道路建設業協会 東北支部"]
[null,null,null,null,"東北建設業協会連合会",null,null,null,null,null,null,null,null,"(一社)日本建設機械施工協会 東北支部"]
[null,null,null,null,"(一社)東北コンクリート製品協会",null,null,null,null,null,null,null,null,"(一社)全国特定法面保護協会 東北地方支部"]
[null,null,null,null,"(一社)日本埋立浚渫協会 東北地方支部",null,null,null,null,null,null,null,null,"(一社)建設電気技術協会 東北地方支部"]
[null,null,null,null,"(一社)建設コンサルタンツ協会",null,null,null,null,null,null,null,null,"★記載の団体に属さない場合はこちら"]
[]
["◆出展者の過去のＥＥ東北への出展回数をわかる範囲でお知らせください  　(該当欄を○で囲むか、ボタンをクリック)"]
[]
[null,null,null,"なし",null,null,"１～５回",null,null,null,"６～２７回",null,null,null,null,"２８回すべて参加"]
[]
["２．出展小間の希望"]
["屋内小間",null,null,null,null,"必要小間数",null,null,"角小間希望\n(該当欄を○で囲むか、ボタンをクリック)",null,null,null,null,"屋外小間",null,null,null,null,"必要小間数"]
["１小間あたり\n間口3m×奥行3m×高さ2.4m",null,null,null,null,null,null,null,null,"有り",null,null,"無し","１小間あたり\n間口10m×奥行10m"]
["※角小間希望の選択のない場合は「希望無し」とさせていただきます\n※必要小間数をお申込みいただきますが、会場の都合により小間数を調整させていただく場合が\n   ございますのであらかじめご了承ください。"]
["３．出展技術の申請"]
["◆出展技術数(ガイドブックに掲載できる技術数)は、１小間あたり最大で３技術までです。\n   ブースの配置は、代表技術として選択された技術分野のエリアへ配置されます。\n◆２技術以上出展する場合、メインとなる技術を代表として１技術だけ選択し、一番上の枠に入力(記入)してください。\n　　(※1小間につき１技術ではなく、１出展者につき１技術）"]
["➊出展技術分野を5分野から選択し、入力(記入)してください。プルダウンリスト▼から選択できます。\n➋希望エリアを屋内、屋外から選択、入力(記入)してください。プルダウンリスト▼から選択できます。\n➌出展新技術の名称を25文字以内で入力(記入)してください。(ガイドブック掲載の都合上、文字数を制限しております。)\n➍NETIS登録番号を入力(記入)してください。前後の識別記号はプルダウンリスト▼から選択できます。\n➎i-Constructionに該当する技術の場合は、i-Constructionと入力(記入)してください。プルダウンリスト▼から選択できます。"]
["№","\n技術分野",null,"希望\nエリア","\n出展新技術の名称（25文字以内）\n※25文字を超えている場合は、ガイドブック原稿提出までに\n   修正いただきます。",null,null,null,null,null,null,null,null,"\nNETIS登録番号\n※掲載期間が終了している番号は\n入力しないで下さい。",null,null,null,null,"i-Construction\nに該当",null,null,null,"i-Constructionに該当技術を出展の場合は、会場ブースの社名プレートとガイドブック・ガイドマップに\n\n　　　　　　　　こちらのロゴマークが表示されます。"]
[1]
[2,null,null,null,null,null,null,null,null,null,null,null,null,null,null,null,null,null,null,null,null,null,"現時点で、出展技術名が決定していない場合は、出展予定の技術数と出展分野のみを確定させ、(仮)として入力してください。"]
[3,null,null,null,null,null,null,null,null,null,null,null,null,null,null,null,null,null,null,null,null,null,"確定し次第、再度ご提出いただきます。空白のまま提出しないでください。"]
[4,null,null,null,null,null,null,null,null,null,null,null,null,null,null,null,null,null,null,null,null,null,"出展技術名はガイドブックの原稿提出の締切（平成31年1月末）までは変更が可能です。\nしかし、技術分野の変更はできません。"]
[5,null,null,null,null,null,null,null,null,null,null,null,null,null,null,null,null,null,null,null,null,null,"★ガイドブック掲載に関わる入力のルールとして、使用する記号等は下記表内のものに統一させていただきます。すべて半角でご入力ください。"]
[6,null,null,null,null,null,null,null,null,null,null,null,null,null,null,null,null,null,null,null,null,null,"英数字",null,"スペース\n(空白)",null,"読点",null,"スラッシュ",null,"ハイフン",null,"中点",null,"かっこ",null,"かっこを使用する場合は、()、｢｣、のみ\nに統一させていただきます。\n【】、『』、[]、など それ以外のかっこは\n使用しないでください。"]
[7,null,null,null,null,null,null,null,null,null,null,null,null,null,null,null,null,null,null,null,null,null,"ABC",123," ",null,"､",null,"/",null,"-",null,"･",null,"()","｢｣"]
[8,null,null,null,null,null,null,null,null,null,null,null,null,null,null,null,null,null,null,null,null,null,"トレードマーク",null,"商標登録"]
[9,null,null,null,null,null,null,null,null,null,null,null,null,null,null,null,null,null,null,null,null,null,"™",null,"®",null,"商標登録の®はデータ上、中央に表示されておりますが、\nガイドブックでは右上に表示されます。"]
[10]
[11,null,null,null,null,null,null,null,null,null,null,null,null,null,null,null,null,null,null,null,null,null,"技術名には自動でルビが振られるようになっておりますが、実際の読み方と異なる場合は、ふりがなの編集で修正してください。"]
[12,null,null,null,null,null,null,null,null,null,null,null,null,null,null,null,null,null,null,null,null,null,"\nふりがなの編集は、入力した➌出展新技術の名称のセルを選択し、 　　\n　 　　　　"]
["４．新技術プレゼンテーションの希望　",null,null,null,null,null,null,null,null,null,null,null,null,null,null,null,null,null,null,null,null,null,"【ホーム】タブ→【フォント】グループ（右端下）　　　　　　　の▼をクリック、真ん中のふりがなの編集(E)をクリックして修正してください。"]
["※希望多数の場合は、事務局による抽選の上、発表者を決定させていただきます。\n※前回（ＥＥ東北'１８）と同様の発表技術は、抽選の対象外とさせていただく場合がございます。"]
["希望の有無\n　(該当欄を○で囲むか、ボタンをクリック)",null,null,null,null,null,null,null,"希望しない",null,null,null,null,null,null,"希望する"]
["※発表を希望する技術を、次の「４．出展技術」の中から選択し、\n　右枠に番号を入力してください。"]
[{"$f":"IFERROR(VLOOKUP(O54,A39:M50,5),\"\")","v":""},null,null,null,null,null,null,null,null,null,null,null,null,null,null,null,null,null,null,null,null,null,"☜ 技術名は番号を入力すると自動で表示されます。"]
["５．事務局あて連絡事項（特記事項）出展料支払い時期の変更希望ならびに小間配置に関する希望等"]
["通信欄"]
["◆個人情報のお取扱いについて◆"]
["ご記入いただいた情報はＥＥ東北実行委員会事務局からの出展に関わる各種ご案内に利用させていただきます。\nその他、運営、装飾施工、電気工事等の事務局斡旋業者には、業務上の理由で出展者の情報を提供いたします。\n法令に基づく場合を除き、上記の理由以外でご本人の同意を得ることなく利用または提供することはありません。\n"]
[]
["北海道","i-Construction",null,"Ａ","設計・施工",null,"HK-",null,0,null,"-A"]
["青森県",null,null,"Ｂ","維持管理・予防保全",null,"TH-",null,1,null,"-V"]
["岩手県",null,null,"Ｃ","建設副産物・リサイクル",null,"KTK-",null,2,null,"-VE"]
["宮城県",null,null,"Ｄ","防災・安全",null,"KT-",null,3,null,"-VR"]
["秋田県",null,null,"Ｅ","その他共通",null,"HR-",null,4]
["山形県",null,null,"Ｆ","大学研究室・国土交通省",null,"CB-",null,5]
["福島県",null,null,null,null,null,"KK-",null,6]
["栃木県",null,null,null,null,null,"CG-",null,7]
["茨城県",null,null,"屋内",null,null,"SK-",null,8]
["群馬県",null,null,"屋外",null,null,"QS-",null,9]
["埼玉県",null,null,null,null,null,"OK-",null,10]
["千葉県",null,null,"★","企業・団体",null,"TS-",null,11]
["東京都",null,null,"☆","大学・行政",null,"HKK-",null,12]
["神奈川県",null,null,null,null,null,"THK-"]
["新潟県",null,null,null,null,null,"HRK-"]
["富山県",null,null,null,null,null,"CBK-"]
["石川県",null,null,null,null,null,"KKK-"]
["福井県",null,null,null,null,null,"CGK-"]
["山梨県",null,null,null,null,null,"SKK-"]
["長野県",null,null,null,null,null,"QSK-"]
["岐阜県",null,null,null,null,null,"OKK-"]
["静岡県"]
["愛知県"]
["三重県"]
["滋賀県"]
["京都府"]
["大阪府"]
["兵庫県"]
["奈良県"]
["和歌山県"]
["鳥取県"]
["島根県"]
["岡山県"]
["広島県"]
["山口県"]
["徳島県"]
["香川県"]
["愛媛県"]
["高知県"]
["福岡県"]
["佐賀県"]
["長崎県"]
["熊本県"]
["大分県"]
["宮崎県"]
["鹿児島県"]
["沖縄県"]

{"sheet":"入力例・注意事項","index":1,"n_rows":107,"n_cols":37,"rows_kept":107,"cut":false,"hidden":false,"merged":[[12,0,12,20],[13,0,13,2],[10,22,10,24],[10,25,10,42],[6,0,6,20],[11,22,11,24],[11,25,11,42],[8,15,8,16],[8,17,8,20],[9,0,9,20],[10,0,10,2],[10,3,10,20],[11,0,11,2],[11,3,11,20],[13,3,13,20],[13,22,13,24],[13,25,13,42],[1,0,1,3],[3,0,3,20],[4,0,4,20],[5,0,5,20],[8,0,8,2],[8,3,8,4],[8,5,8,8],[8,9,8,10],[8,11,8,14],[7,0,7,20],[14,22,14,24],[14,25,14,42],[15,22,16,42],[18,0,18,2],[18,3,18,15],[18,16,18,20],[14,0,14,2],[14,3,14,20],[15,0,15,2],[15,3,15,10],[15,11,15,15],[15,16,15,20],[19,0,19,2],[19,3,19,7],[19,8,19,10],[19,11,19,15],[19,16,19,20],[16,0,16,2],[16,3,16,10],[16,11,16,15],[16,16,16,20],[17,0,17,2],[17,4,17,6],[17,7,17,20],[24,13,24,20],[26,0,26,20],[28,6,28,7],[28,10,28,12],[28,15,28,18],[30,0,30,20],[20,0,24,2],[20,4,20,11],[20,13,20,20],[21,4,21,11],[21,13,21,20],[22,4,22,11],[22,13,22,20],[23,4,23,11],[23,13,23,20],[24,4,24,11],[33,0,33,20],[34,0,34,20],[35,0,35,20],[36,0,36,20],[37,1,37,2],[37,4,37,12],[37,13,37,17],[37,18,37,20],[31,0,31,4],[31,5,31,7],[31,8,31,12],[31,13,31,17],[31,18,31,20],[32,0,32,4],[32,5,32,7],[32,13,32,17],[32,18,32,20],[40,1,40,2],[40,4,40,12],[40,14,40,16],[40,18,40,20],[41,1,41,2],[41,4,41,12],[41,14,41,16],[41,18,41,20],[38,1,38,2],[38,4,38,12],[38,14,38,16],[38,18,38,20],[39,1,39,2],[39,4,39,12],[39,14,39,16],[39,18,39,20],[42,1,42,2],[42,4,42,12],[42,14,42,16],[42,18,42,20],[43,1,43,2],[43,4,43,12],[43,14,43,16],[43,18,43,20],[43,30,43,31],[43,22,43,23],[43,24,43,25],[43,26,43,27],[43,28,43,29],[44,32,44,33],[48,1,48,2],[48,4,48,12],[48,14,48,16],[48,18,48,20],[44,24,44,25],[45,24,45,25],[44,1,44,2],[44,4,44,12],[44,14,44,16],[44,18,44,20],[45,1,45,2],[45,4,45,12],[45,14,45,16],[45,18,45,20],[45,22,45,23],[46,22,46,23],[46,24,46,25],[56,1,56,20],[57,0,57,20],[58,0,58,20],[50,0,50,20],[52,0,52,6],[52,8,52,13],[52,15,52,20],[53,0,53,13],[53,14,53,20],[51,0,51,20],[43,32,43,33],[43,34,43,35],[4,22,8,42],[12,22,12,42],[37,22,37,42],[43,36,44,42],[54,22,54,42],[54,0,54,20],[55,0,55,20],[49,1,49,2],[49,4,49,12],[49,14,49,16],[49,18,49,20],[46,1,46,2],[46,4,46,12],[46,14,46,16],[46,18,46,20],[47,1,47,2],[47,4,47,12],[47,14,47,16],[47,18,47,20],[44,26,44,27],[44,28,44,29],[44,30,44,31]]}
[]
["入力例 "]
[]
["建設技術公開「ＥＥ東北’19」出展申込書"]
["「ＥＥ東北'19」出展募集要項に同意の上、以下のとおり出展を申込みます",null,null,null,null,null,null,null,null,null,null,null,null,null,null,null,null,null,null,null,null,null,"出展形式がグループ出展・共同出展の場合は、\n出展するすべての企業(団体)名を『　/　(半角スラッシュ)』で区切って記入(入力)してください。\nさらに、グループ出展の場合は頭にグループ名を入れてください。\n※こちらに記入(入力)した企業・団体名が出展者名プレートやガイドブックに表記する名称となります。"]
["１．出展者・申込者の申請"]
[]
["◆出展形式を選択してください　(該当欄を○で囲むかボタンをクリック)"]
["出展形式",null,null,null,null,"➊単独出展\n1企業(団体)での出展",null,null,null,null,null,"➋グループ出展\nグループ企業での出展",null,null,null,null,null,"➌共同出展\n複数企業(団体)での出展"]
["①出展者名を正式な企業・団体名で記入(入力)してください"]
["ﾌﾘｶﾞﾅ(半角)",null,null,"ｾｺｳﾁｮｳｻｷﾞｼﾞｭﾂｶﾂﾖｳｾﾝﾀｰ",null,null,null,null,null,null,null,null,null,null,null,null,null,null,null,null,null,null,"ﾌﾘｶﾞﾅ(半角)",null,null,"ｼｰｴｽﾃｨｰﾕｰﾎｰﾙﾃﾞｨﾝｸﾞｽ　ﾄｳﾎｸﾃｸﾉﾛｼﾞｰ/ｺﾝｽﾄﾗｸｼｮﾝ/ﾄｳﾎｸﾃｸﾉﾕｰｽ/ﾎﾞｳｻｲﾁｮｳｻ"]
["出展者名",null,null,"㈱施工調査技術活用センター",null,null,null,null,null,null,null,null,null,null,null,null,null,null,null,null,null,null,"出展者名",null,null,"CSTUホールディングス　(株)東北テクノロジー/(株)コンストラクション/東北テクノユース(株)/防災調査(株)"]
["➁申込者名を正式な企業・団体名で記入(入力)してください",null,null,null,null,null,null,null,null,null,null,null,null,null,null,null,null,null,null,null,null,null,"こちらに記入(入力)した企業・団体名の(担当者所在地)宛てに請求書を送付します。"]
["ﾌﾘｶﾞﾅ(半角)",null,null,"ｾｺｳﾁｮｳｻｷﾞｼﾞｭﾂｶﾂﾖｳｾﾝﾀｰ",null,null,null,null,null,null,null,null,null,null,null,null,null,null,null,null,null,null,"ﾌﾘｶﾞﾅ(半角)",null,null,"ﾄｳﾎｸﾃｸﾉﾛｼﾞｰ"]
["申込者名\n(企業・団体名)",null,null,"㈱施工調査技術活用センター",null,null,null,null,null,null,null,null,null,null,null,null,null,null,null,null,null,null,"申込者名\n(企業・団体名)",null,null,"(株)東北テクノロジー"]
["ﾌﾘｶﾞﾅ(半角)",null,null,"ﾅｶﾊﾗ　ｼﾞｭﾝﾔ",null,null,null,null,null,null,null,"所属部署",null,null,null,null,"役　職",null,null,null,null,null,"出展形式がグループ出展・共同出展の場合は、\n代表となる企業・団体名と申込に関する窓口となる担当者を記入(入力)してください。"]
["担当者氏名",null,null,"中原　順也",null,null,null,null,null,null,null,"技術調査部",null,null,null,null,"次長"]
["所在地",null,null,"〒","985-0842",null,null,"宮城県多賀城市桜木三丁目６番１号"]
["E-mail",null,null,"thr-tougi01@mlit.go.jp",null,null,null,null,null,null,null,null,null,null,null,null,"出展申込者の本社・本部等の\n所在地（都道府県）"]
["ＴＥＬ",null,null,"022-365-7983",null,null,null,null,"ＦＡＸ",null,null,"022-365-8152",null,null,null,null,"宮城県"]
["所属する\n構成団体\n\n(該当欄を\n○で囲むか\nボタンをクリック)",null,null,null,"(一社)日本建設業連合会 東北支部",null,null,null,null,null,null,null,null,"(一社)日本道路建設業協会 東北支部"]
[null,null,null,null,"東北建設業協会連合会",null,null,null,null,null,null,null,null,"(一社)日本建設機械施工協会 東北支部"]
[null,null,null,null,"(一社)東北コンクリート製品協会",null,null,null,null,null,null,null,null,"(一社)全国特定法面保護協会 東北地方支部"]
[null,null,null,null,"(一社)日本埋立浚渫協会 東北地方支部",null,null,null,null,null,null,null,null,"(一社)建設電気技術協会 東北地方支部"]
[null,null,null,null,"(一社)建設コンサルタンツ協会",null,null,null,null,null,null,null,null,"★記載の団体に属さない場合はこちら"]
[]
["◆出展者の過去のＥＥ東北への出展回数をわかる範囲でお知らせください  　(該当欄を○で囲むか、ボタンをクリック)"]
[]
[null,null,null,"なし",null,null,"１～５回",null,null,null,"６～２７回",null,null,null,null,"２８回すべて参加"]
[]
["２．出展小間の希望"]
["屋内小間",null,null,null,null,"必要小間数",null,null,"角小間希望\n(該当欄を○で囲むか、ボタンをクリック)",null,null,null,null,"屋外小間",null,null,null,null,"必要小間数"]
["１小間あたり\n間口3m×奥行3m×高さ2.4m",null,null,null,null,2,null,null,null,"有り",null,null,"無し","１小間あたり\n間口10m×奥行10m",null,null,null,null,1]
["※角小間希望の選択のない場合は「希望無し」とさせていただきます\n※必要小間数をお申込みいただきますが、会場の都合により小間数を調整させていただく場合が\n   ございますのであらかじめご了承ください。"]
["３．出展技術の申請"]
["◆出展技術数(ガイドブックに掲載できる技術数)は、１小間あたり最大で３技術までです。\n   ブースの配置は、代表技術として選択された技術分野のエリアへ配置されます。\n◆２技術以上出展する場合、メインとなる技術を代表として１技術だけ選択し、一番上の枠に入力(記入)してください。\n　　(※1小間につき１技術ではなく、１出展者につき１技術）"]
["➊出展技術分野を5分野から選択し、入力(記入)してください。プルダウンリスト▼から選択できます。\n➋希望エリアを屋内、屋外から選択、入力(記入)してください。プルダウンリスト▼から選択できます。\n➌出展新技術の名称を25文字以内で入力(記入)してください。(ガイドブック掲載の都合上、文字数を制限しております。)\n➍NETIS登録番号を入力(記入)してください。前後の識別記号はプルダウンリスト▼から選択できます。\n➎i-Constructionに該当する技術の場合は、i-Constructionと入力(記入)してください。プルダウンリスト▼から選択できます。"]
["№","\n技術分野",null,"希望\nエリア","\n出展新技術の名称（25文字以内）\n※25文字を超えている場合は、ガイドブック原稿提出までに\n   修正いただきます。",null,null,null,null,null,null,null,null,"\nNETIS登録番号\n※掲載期間が終了している番号は\n入力しないで下さい。",null,null,null,null,"i-Construction\nに該当",null,null,null,"i-Constructionに該当技術を出展の場合は、会場ブースの社名プレートとガイドブック・ガイドマップに\n\n　　　　　　　　こちらのロゴマークが表示されます。"]
[1,"防災・安全",null,"屋内","MMS移動計測車両システム",null,null,null,null,null,null,null,null,"TH-","150101",null,null,"-A","i-Construction"]
[2,"維持管理・予防保全",null,"屋内","コンクリート構造物の調査手法",null,null,null,null,null,null,null,null,null,null,null,null,null,null,null,null,null,"現時点で、出展技術名が決定していない場合は、出展予定の技術数と出展分野のみを確定させ、(仮)として入力してください。"]
[3,"防災・安全",null,"屋外","組立応急橋",null,null,null,null,null,null,null,null,null,null,null,null,null,null,null,null,null,"確定し次第、再度ご提出いただきます。空白のまま提出しないでください。"]
[4,null,null,null,null,null,null,null,null,null,null,null,null,null,null,null,null,null,null,null,null,null,"出展技術名はガイドブックの原稿提出の締切（平成31年1月末）までは変更が可能です。\nしかし、技術分野の変更はできません。"]
[5,null,null,null,null,null,null,null,null,null,null,null,null,null,null,null,null,null,null,null,null,null,"★ガイドブック掲載に関わる入力のルールとして、使用する記号等は下記表内のものに統一させていただきます。すべて半角でご入力ください。"]
[6,null,null,null,null,null,null,null,null,null,null,null,null,null,null,null,null,null,null,null,null,null,"英数字",null,"スペース\n(空白)",null,"読点",null,"スラッシュ",null,"ハイフン",null,"中点",null,"かっこ",null,"かっこを使用する場合は、()、｢｣、のみ\nに統一させていただきます。\n【】、『』、[]、など それ以外のかっこは\n使用しないでください。"]
[7,null,null,null,null,null,null,null,null,null,null,null,null,null,null,null,null,null,null,null,null,null,"ABC",123," ",null,"､",null,"/",null,"-",null,"･",null,"()","｢｣"]
[8,null,null,null,null,null,null,null,null,null,null,null,null,null,null,null,null,null,null,null,null,null,"トレードマーク",null,"商標登録"]
[9,null,null,null,null,null,null,null,null,null,null,null,null,null,null,null,null,null,null,null,null,null,"™",null,"®",null,"商標登録の®はデータ上、中央に表示されておりますが、\nガイドブックでは右上に表示されます。"]
[10]
[11,null,null,null,null,null,null,null,null,null,null,null,null,null,null,null,null,null,null,null,null,null,"技術名には自動でルビが振られるようになっておりますが、実際の読み方と異なる場合は、ふりがなの編集で修正してください。"]
[12,null,null,null,null,null,null,null,null,null,null,null,null,null,null,null,null,null,null,null,null,null,"\nふりがなの編集は、入力した➌出展新技術の名称のセルを選択し、 　　\n　 　　　　"]
["４．新技術プレゼンテーションの希望　",null,null,null,null,null,null,null,null,null,null,null,null,null,null,null,null,null,null,null,null,null,"【ホーム】タブ→【フォント】グループ（右端下）　　　　　　　の▼をクリック、真ん中のふりがなの編集(E)をクリックして修正してください。"]
["※希望多数の場合は、事務局による抽選の上、発表者を決定させていただきます。\n※前回（ＥＥ東北'１８）と同様の発表技術は、抽選の対象外とさせていただく場合がございます。"]
["希望の有無\n　(該当欄を○で囲むか、ボタンをクリック)",null,null,null,null,null,null,null,"希望しない",null,null,null,null,null,null,"希望する"]
["※発表を希望する技術を、次の「４．出展技術」の中から選択し、\n　右枠に番号を入力してください。",null,null,null,null,null,null,null,null,null,null,null,null,null,1]
[{"$f":"IFERROR(VLOOKUP(O54,A39:M50,5),\"\")","v":"MMS移動計測車両システム"},null,null,null,null,null,null,null,null,null,null,null,null,null,null,null,null,null,null,null,null,null,"☜ 技術名は番号を入力すると自動で表示されます。"]
["５．事務局あて連絡事項（特記事項）出展料支払い時期の変更希望ならびに小間配置に関する希望等"]
["通信欄","精算払いでお願いします"]
["◆個人情報のお取扱いについて◆"]
["ご記入いただいた情報はＥＥ東北実行委員会事務局からの出展に関わる各種ご案内に利用させていただきます。\nその他、運営、装飾施工、電気工事等の事務局斡旋業者には、業務上の理由で出展者の情報を提供いたします。\n法令に基づく場合を除き、上記の理由以外でご本人の同意を得ることなく利用または提供することはありません。\n"]
[]
["北海道","i-Construction",null,"Ａ","設計・施工",null,"HK-",null,0,null,"-A"]
["青森県",null,null,"Ｂ","維持管理・予防保全",null,"TH-",null,1,null,"-V"]
["岩手県",null,null,"Ｃ","建設副産物・リサイクル",null,"KTK-",null,2,null,"-VE"]
["宮城県",null,null,"Ｄ","防災・安全",null,"KT-",null,3,null,"-VR"]
["秋田県",null,null,"Ｅ","その他共通",null,"HR-",null,4]
["山形県",null,null,"Ｆ","大学研究室・国土交通省",null,"CB-",null,5]
["福島県",null,null,null,null,null,"KK-",null,6]
["栃木県",null,null,null,null,null,"CG-",null,7]
["茨城県",null,null,"屋内",null,null,"SK-",null,8]
["群馬県",null,null,"屋外",null,null,"QS-",null,9]
["埼玉県",null,null,null,null,null,"OK-",null,10]
["千葉県",null,null,"★","企業・団体",null,"TS-",null,11]
["東京都",null,null,"☆","大学・行政",null,"HKK-",null,12]
["神奈川県",null,null,null,null,null,"THK-"]
["新潟県",null,null,null,null,null,"HRK-"]
["富山県",null,null,null,null,null,"CBK-"]
["石川県",null,null,null,null,null,"KKK-"]
["福井県",null,null,null,null,null,"CGK-"]
["山梨県",null,null,null,null,null,"SKK-"]
["長野県",null,null,null,null,null,"QSK-"]
["岐阜県",null,null,null,null,null,"OKK-"]
["静岡県"]
["愛知県"]
["三重県"]
["滋賀県"]
["京都府"]
["大阪府"]
["兵庫県"]
["奈良県"]
["和歌山県"]
["鳥取県"]
["島根県"]
["岡山県"]
["広島県"]
["山口県"]
["徳島県"]
["香川県"]
["愛媛県"]
["高知県"]
["福岡県"]
["佐賀県"]
["長崎県"]
["熊本県"]
["大分県"]
["宮崎県"]
["鹿児島県"]
["沖縄県"]

{"sheet":"事務局集計用","index":2,"n_rows":38,"n_cols":36,"rows_kept":38,"cut":false,"hidden":true,"merged":[[17,0,20,6],[23,2,26,11],[2,22,2,23],[2,29,2,32],[2,3,2,4],[2,5,2,6],[2,7,2,8],[2,9,2,18],[2,25,2,27],[2,20,2,21]]}
[]
[null,null,null,"事務局集計用 こちらのシートの様式は変更しないでください。",null,null,null,null,null,null,null,null,null,null,null,null,null,null,null,null,null,160000,null,120000,"屋外の角の希望削除"]
[null,null,null,"申　込　者　名",null,"出　展　者　名",null,"参考情報",null,"窓　　　口",null,null,null,null,null,null,null,null,null,"屋内","屋内",null,"屋外",null,"出展料","プレゼンテーション",null,null,null,"出展技術",null,null,null,"事務局あて"]
["申込年月日",null,"★企業・団体\n☆大学・行政","ﾌﾘｶﾞﾅ\n（半角入力）","会社名\n（全角入力）","ﾌﾘｶﾞﾅ\n（半角入力）","ブース社名\n（全角入力）","過去ＥＥ\n出展回数","本社等\n所在地","氏名","E-mail","部署","役職","〒","県別","住所\n（都道府県から入力）","TEL\n（半角入力）","FAX\n（半角入力）","所属団体","角の\n希望","小間数","屋内\n小間代","小間数","屋外\n小間代","合計","希望","テーマ\n（分野）","名称",null,"新技術\n名称","NETIS\n登録番号\n（半角入力）","技術分野","i-Construction","通信欄"]
[{"$f":"TODAY()","v":"2018-10-03"},{"$f":"$AC5","v":1},null,{"$f":"IF(提出用!$D$11=\"\",\"\",提出用!$D$11)","v":""},{"$f":"IF(提出用!$D$12=\"\",\"\",提出用!$D$12)","v":""},{"$f":"IF(提出用!$D$14=\"\",\"\",提出用!$D$14)","v":""},{"$f":"IF(提出用!$D$15=\"\",\"\",提出用!$D$15)","v":""},{"$f":"IF($H$17=0,\"\",VLOOKUP($H$17,$H$18:$I$21,2,FALSE))","v":28},{"$f":"提出用!$Q$20","v":0},{"$f":"提出用!$D$17","v":0},{"$f":"提出用!$D$19","v":0},{"$f":"IF(提出用!$L$17=\"\",\"\",提出用!$L$17)","v":""},{"$f":"IF(提出用!$Q$17=\"\",\"\",提出用!$Q$17)","v":""},{"$f":"IF(提出用!$E$18=\"\",\"\",提出用!$E$18)","v":""},{"$f":"IF(提出用!$H$18=\"\",\"\",LEFT(提出用!$H$18,3))","v":""},{"$f":"提出用!$H$18","v":0},{"$f":"IF(提出用!$D$20=\"\",\"\",提出用!$D$20)","v":""},{"$f":"IF(提出用!$L$20=\"\",\"\",提出用!$L$20)","v":""},{"$f":"IF($S$17=0,\"\",VLOOKUP($S$17,$S$18:$T$27,2,FALSE))","v":"単独"},{"$f":"IF($U$17=0,\"\",VLOOKUP(U17,$U$18:$V$19,2,FALSE))","v":"有"},{"$f":"提出用!$F$33","v":0},{"$f":"$U$5*$V$2","v":0},{"$f":"提出用!$S$33","v":0},{"$f":"$W$5*$X$2","v":0},{"$f":"SUM($V5,$X5)","v":0},{"$f":"IF($Z$17=0,\"\",VLOOKUP($Z$17,$Z$18:$AA$19,2,FALSE))","v":"有"},{"$f":"IFERROR(IF(Z5=\"\",\"\",VLOOKUP(提出用!O54,$AC$5:$AG$16,4)),\"\")","v":""},{"$f":"IFERROR(IF(Z5=\"\",\"\",VLOOKUP(提出用!O54,$AC$5:$AG$16,2)),\"\")","v":""},1,{"$f":"IF(提出用!$E39=\"\",\"\",提出用!$E39)","v":""},{"$f":"CONCATENATE(提出用!$N39,提出用!$O39,提出用!$R39)","v":""},{"$f":"IF(提出用!$B39=\"\",\"\",VLOOKUP(提出用!$B39,$AF$18:$AG$22,2,FALSE))","v":""},{"$f":"IF(提出用!S39=\"\",\"\",提出用!S39)","v":""},{"$f":"提出用!$B$57","v":0}]
[null,{"$f":"$AC6","v":2},null,null,null,null,null,null,null,null,null,null,null,null,null,null,null,null,null,null,null,null,null,null,null,null,null,null,2,{"$f":"IF(提出用!$E40=\"\",\"\",提出用!$E40)","v":""},{"$f":"CONCATENATE(提出用!$N40,提出用!$O40,提出用!$R40)","v":""},{"$f":"IF(提出用!$B40=\"\",\"\",VLOOKUP(提出用!$B40,$AF$18:$AG$22,2,FALSE))","v":""},{"$f":"IF(提出用!S40=\"\",\"\",提出用!S40)","v":""}]
[null,3,null,null,null,null,null,null,null,null,null,null,null,null,null,null,null,null,null,null,null,null,null,null,null,null,null,null,3,{"$f":"IF(提出用!$E41=\"\",\"\",提出用!$E41)","v":""},{"$f":"CONCATENATE(提出用!$N41,提出用!$O41,提出用!$R41)","v":""},{"$f":"IF(提出用!$B41=\"\",\"\",VLOOKUP(提出用!$B41,$AF$18:$AG$22,2,FALSE))","v":""},{"$f":"IF(提出用!S41=\"\",\"\",提出用!S41)","v":""}]
[null,4,null,null,null,null,null,null,null,null,null,null,null,null,null,null,null,null,null,null,null,null,null,null,null,null,null,null,4,{"$f":"IF(提出用!$E42=\"\",\"\",提出用!$E42)","v":""},{"$f":"CONCATENATE(提出用!$N42,提出用!$O42,提出用!$R42)","v":""},{"$f":"IF(提出用!$B42=\"\",\"\",VLOOKUP(提出用!$B42,$AF$18:$AG$22,2,FALSE))","v":""},{"$f":"IF(提出用!S42=\"\",\"\",提出用!S42)","v":""}]
[null,5,null,null,null,null,null,null,null,null,null,null,null,null,null,null,null,null,null,null,null,null,null,null,null,null,null,null,5,{"$f":"IF(提出用!$E43=\"\",\"\",提出用!$E43)","v":""},{"$f":"CONCATENATE(提出用!$N43,提出用!$O43,提出用!$R43)","v":""},{"$f":"IF(提出用!$B43=\"\",\"\",VLOOKUP(提出用!$B43,$AF$18:$AG$22,2,FALSE))","v":""},{"$f":"IF(提出用!S43=\"\",\"\",提出用!S43)","v":""}]
[null,6,null,null,null,null,null,null,null,null,null,null,null,null,null,null,null,null,null,null,null,null,null,null,null,null,null,null,6,{"$f":"IF(提出用!$E44=\"\",\"\",提出用!$E44)","v":""},{"$f":"CONCATENATE(提出用!$N44,提出用!$O44,提出用!$R44)","v":""},{"$f":"IF(提出用!$B44=\"\",\"\",VLOOKUP(提出用!$B44,$AF$18:$AG$22,2,FALSE))","v":""},{"$f":"IF(提出用!S44=\"\",\"\",提出用!S44)","v":""}]
[null,7,null,null,null,null,null,null,null,null,null,null,null,null,null,null,null,null,null,null,null,null,null,null,null,null,null,null,7,{"$f":"IF(提出用!$E45=\"\",\"\",提出用!$E45)","v":""},{"$f":"CONCATENATE(提出用!$N45,提出用!$O45,提出用!$R45)","v":""},{"$f":"IF(提出用!$B45=\"\",\"\",VLOOKUP(提出用!$B45,$AF$18:$AG$22,2,FALSE))","v":""},{"$f":"IF(提出用!S45=\"\",\"\",提出用!S45)","v":""}]
[null,8,null,null,null,null,null,null,null,null,null,null,null,null,null,null,null,null,null,null,null,null,null,null,null,null,null,null,8,{"$f":"IF(提出用!$E46=\"\",\"\",提出用!$E46)","v":""},{"$f":"CONCATENATE(提出用!$N46,提出用!$O46,提出用!$R46)","v":""},{"$f":"IF(提出用!$B46=\"\",\"\",VLOOKUP(提出用!$B46,$AF$18:$AG$22,2,FALSE))","v":""},{"$f":"IF(提出用!S46=\"\",\"\",提出用!S46)","v":""}]
[null,9,null,null,null,null,null,null,null,null,null,null,null,null,null,null,null,null,null,null,null,null,null,null,null,null,null,null,9,{"$f":"IF(提出用!$E47=\"\",\"\",提出用!$E47)","v":""},{"$f":"CONCATENATE(提出用!$N47,提出用!$O47,提出用!$R47)","v":""},{"$f":"IF(提出用!$B47=\"\",\"\",VLOOKUP(提出用!$B47,$AF$18:$AG$22,2,FALSE))","v":""},{"$f":"IF(提出用!S47=\"\",\"\",提出用!S47)","v":""}]
[null,10,null,null,null,null,null,null,null,null,null,null,null,null,null,null,null,null,null,null,null,null,null,null,null,null,null,null,10,{"$f":"IF(提出用!$E48=\"\",\"\",提出用!$E48)","v":""},{"$f":"CONCATENATE(提出用!$N48,提出用!$O48,提出用!$R48)","v":""},{"$f":"IF(提出用!$B48=\"\",\"\",VLOOKUP(提出用!$B48,$AF$18:$AG$22,2,FALSE))","v":""},{"$f":"IF(提出用!S48=\"\",\"\",提出用!S48)","v":""}]
[null,11,null,null,null,null,null,null,null,null,null,null,null,null,null,null,null,null,null,null,null,null,null,null,null,null,null,null,11,{"$f":"IF(提出用!$E49=\"\",\"\",提出用!$E49)","v":""},{"$f":"CONCATENATE(提出用!$N49,提出用!$O49,提出用!$R49)","v":""},{"$f":"IF(提出用!$B49=\"\",\"\",VLOOKUP(提出用!$B49,$AF$18:$AG$22,2,FALSE))","v":""},{"$f":"IF(提出用!S49=\"\",\"\",提出用!S49)","v":""}]
[null,12,null,null,null,null,null,null,null,null,null,null,null,null,null,null,null,null,null,null,null,null,null,null,null,null,null,null,12,{"$f":"IF(提出用!$E50=\"\",\"\",提出用!$E50)","v":""},{"$f":"CONCATENATE(提出用!$N50,提出用!$O50,提出用!$R50)","v":""},{"$f":"IF(提出用!$B50=\"\",\"\",VLOOKUP(提出用!$B50,$AF$18:$AG$22,2,FALSE))","v":""},{"$f":"IF(提出用!S50=\"\",\"\",提出用!S50)","v":""}]
[null,null,null,null,null,null,null,4,null,null,null,null,null,null,null,null,null,null,10,null,1,null,null,null,null,2,null,null,null,null,null,null,null,null,1]
["↑データをコピペした日付が入るので場合によっては\nコピペした後に修正必要。",null,null,null,null,null,null,1,"なし",null,null,null,null,null,null,null,null,null,1,"日建連",1,"有","屋内",null,null,1,null,null,null,null,null,"設計・施工","Ａ設計・施工",null,1,"単独"]
[null,null,null,null,null,null,null,2,"1～5",null,null,null,null,null,null,null,null,null,6,"道建協",2,null,"屋外",null,null,2,"有",null,null,null,null,"維持管理・予防保全","Ｂ維持管理・予防保全",null,2,"グループ"]
[null,null,null,null,null,null,null,3,"6～27",null,null,null,null,null,null,null,null,null,2,"連合会",null,null,null,null,null,null,null,null,null,null,null,"建設副産物・リサイクル","Ｃ建設副産物・リサイクル",null,3,"共同"]
[null,null,null,null,null,null,null,4,28,null,null,null,null,null,null,null,null,null,7,"機施協",null,null,null,null,null,null,null,null,null,null,null,"防災・安全","Ｄ防災・安全"]
[null,null,null,null,null,null,null,null,null,null,null,null,null,null,null,null,null,null,3,"東コン",null,null,null,null,null,null,null,null,null,null,null,"その他共通","Ｅその他共通"]
[null,null,null,null,null,null,null,null,null,null,null,null,null,null,null,null,null,null,8,"法面協"]
[null,null,"↑★企業・団体　☆大学・行政　選択してから、データベースへコピーする。",null,null,null,null,null,null,null,null,null,null,null,null,null,null,null,4,"埋浚"]
[null,null,null,null,null,null,null,null,null,null,null,null,null,null,null,null,null,null,9,"建電協"]
[null,null,null,null,null,null,null,null,null,null,null,null,null,null,null,null,null,null,5,"建コン"]
[null,null,null,null,null,null,null,null,null,null,null,null,null,null,null,null,null,null,10,"単独"]
[]
[]
[]
[]
[]
[]
[]
[]
[]
[null,null,null,null,null,null,null,null,null,null,null,null,null,null,"【表記例】","株式会社","有限会社","合同会社","一般社団法人","一般財団法人","国立研究開発法人","国立大学法人"]
[null,null,null,null,null,null,null,null,null,null,null,null,null,null,"かっこは半角","(株)","(有)","(同)","(一社)","(一財)","(国研)","(大)"]